[Event "Open Nuevo Centro. Jornada 2"]
[Site "Chess.com"]
[Date "2020.06.26"]
[Round "4"]
[White "Vega Gutiérrez, Sabrina"]
[Black "Cayon Pelaez, Pablo"]
[Result "1-0"]
[WhiteElo "2032"]
[BlackElo "1749"]
[TimeControl "180+2"]
[EndTime "11:10:36 PDT"]
[Termination "Victoria de Valeron87 por jaque mate"]

1. e4 {[%clk 0:03:01.9]} 1... e5 {[%clk 0:03:00.9]} 2. Nf3 {[%clk 0:03:02.6]}
2... Nc6 {[%clk 0:03:02]} 3. d4 {[%clk 0:03:03]} 3... exd4 {[%clk 0:03:03.2]} 4.
Nxd4 {[%clk 0:03:03.3]} 4... Qf6 {[%clk 0:03:03.8]} 5. Nf3 {[%clk 0:02:35.1]}
5... Bc5 {[%clk 0:02:46.2]} 6. Nc3 {[%clk 0:02:34.3]} 6... h6 {[%clk 0:02:07.8]}
7. Nd5 {[%clk 0:02:30.6]} 7... Qd8 {[%clk 0:02:06.8]} 8. Bf4 {[%clk 0:02:29.2]}
8... d6 {[%clk 0:02:04.1]} 9. Qd2 {[%clk 0:02:30]} 9... Nf6 {[%clk 0:02:01.7]}
10. Bd3 {[%clk 0:02:13.2]} 10... O-O {[%clk 0:01:50]} 11. O-O-O {[%clk
0:01:33.4]} 11... Be6 {[%clk 0:01:22]} 12. Bxh6 {[%clk 0:01:19.9]} 12... gxh6
{[%clk 0:01:06.5]} 13. Qxh6 {[%clk 0:01:20.5]} 13... Ng4 {[%clk 0:00:52]} 14.
Qh5 {[%clk 0:01:20.2]} 14... Nxf2 {[%clk 0:00:30.9]} 15. Ng5 {[%clk 0:01:08.8]}
15... Re8 {[%clk 0:00:12.7]} 16. Qh7+ {[%clk 0:01:09.5]} 16... Kf8 {[%clk
0:00:12.8]} 17. Qh8# {[%clk 0:01:11]} 1

[Event "Open Nuevo Centro. Jornada 2"]
[Site "Chess.com"]
[Date "2020.06.26"]
[Round "4"]
[White "Pallardo Lozoya, Jose Vicente"]
[Black "Rodriguez, Mathias"]
[Result "1-0"]
[WhiteElo "2364"]
[BlackElo "1984"]
[TimeControl "180+2"]
[EndTime "11:10:44 PDT"]
[Termination "Victoria de PallardoChess por tiempo"]

1. e4 {[%clk 0:03:01.9]} 1... e5 {[%clk 0:02:59.3]} 2. Nf3 {[%clk 0:02:55.9]}
2... Nc6 {[%clk 0:02:54.6]} 3. d4 {[%clk 0:02:56.6]} 3... exd4 {[%clk
0:02:50.8]} 4. Bc4 {[%clk 0:02:57.5]} 4... Nf6 {[%clk 0:02:41.3]} 5. e5 {[%clk
0:02:58.6]} 5... d5 {[%clk 0:02:39.7]} 6. Bb5 {[%clk 0:02:59.1]} 6... Nd7 {[%clk
0:02:31.5]} 7. O-O {[%clk 0:02:46.9]} 7... Bc5 {[%clk 0:02:26.4]} 8. Nbd2 {[%clk
0:02:12]} 8... O-O {[%clk 0:02:25.5]} 9. Nb3 {[%clk 0:02:02]} 9... Bb6 {[%clk
0:01:54.1]} 10. a4 {[%clk 0:01:22.5]} 10... a6 {[%clk 0:01:40.6]} 11. Bxc6
{[%clk 0:01:04.7]} 11... bxc6 {[%clk 0:01:28.4]} 12. a5 {[%clk 0:01:06.2]} 12...
Ba7 {[%clk 0:01:28.3]} 13. Nbxd4 {[%clk 0:01:02.2]} 13... Re8 {[%clk 0:01:13.3]}
14. Nxc6 {[%clk 0:01:00.5]} 1

[Event "Open Nuevo Centro. Jornada 2"]
[Site "Chess.com"]
[Date "2020.06.26"]
[Round "4"]
[White "Yatseta Fernandez, Marc Kazymyr"]
[Black "Hassomal Daswani, Birjkumar"]
[Result "0-1"]
[WhiteElo "1455"]
[BlackElo "1842"]
[TimeControl "180+2"]
[EndTime "11:11:02 PDT"]
[Termination "Victoria de daz000007 por abandono"]

1. d4 {[%clk 0:03:00.9]} 1... Nf6 {[%clk 0:02:59.5]} 2. c4 {[%clk 0:03:02.2]}
2... c5 {[%clk 0:02:59.4]} 3. g3 {[%clk 0:03:02.7]} 3... cxd4 {[%clk 0:02:59.6]}
4. Nf3 {[%clk 0:03:03.8]} 4... Nc6 {[%clk 0:02:58.9]} 5. Nxd4 {[%clk 0:03:02]}
5... Nxd4 {[%clk 0:02:57.7]} 6. Qxd4 {[%clk 0:03:03.9]} 6... g6 {[%clk
0:02:58.7]} 7. Bg2 {[%clk 0:03:03.7]} 7... Bg7 {[%clk 0:02:59.6]} 8. Be3 {[%clk
0:03:03.1]} 8... O-O {[%clk 0:02:57.3]} 9. Qd2 {[%clk 0:03:00.2]} 9... d6 {[%clk
0:02:57]} 10. O-O {[%clk 0:02:59.9]} 10... Rb8 {[%clk 0:02:57.2]} 11. Nc3 {[%clk
0:02:58.2]} 11... b6 {[%clk 0:02:57]} 12. a4 {[%clk 0:02:52]} 12... Ng4 {[%clk
0:02:56.8]} 13. Bd4 {[%clk 0:02:46.3]} 13... e5 {[%clk 0:02:56.1]} 14. Be3
{[%clk 0:02:44.3]} 14... Nxe3 {[%clk 0:02:56.3]} 15. Qxe3 {[%clk 0:02:46.2]}
15... Be6 {[%clk 0:02:57.2]} 16. b3 {[%clk 0:02:45.7]} 16... f5 {[%clk
0:02:52.5]} 17. Rfd1 {[%clk 0:02:41.4]} 17... Qe7 {[%clk 0:02:47.3]} 18. Bd5
{[%clk 0:02:38.9]} 18... e4 {[%clk 0:02:45.2]} 19. Rac1 {[%clk 0:02:34.6]} 19...
Bxc3 {[%clk 0:02:44.4]} 20. Qxc3 {[%clk 0:02:33.3]} 20... Rfc8 {[%clk
0:02:42.6]} 21. Qd4 {[%clk 0:02:27.6]} 21... a5 {[%clk 0:02:38.2]} 22. Bxe6+
{[%clk 0:02:24.7]} 22... Qxe6 {[%clk 0:02:38.4]} 23. Qxd6 {[%clk 0:02:24.2]}
23... Kf7 {[%clk 0:02:31.4]} 24. Qd7+ {[%clk 0:02:22.6]} 24... Qe7 {[%clk
0:02:27]} 25. Rc2 {[%clk 0:02:17.1]} 25... Rd8 {[%clk 0:02:25.7]} 26. Qxe7+
{[%clk 0:02:17.9]} 26... Kxe7 {[%clk 0:02:26.2]} 27. Rcd2 {[%clk 0:02:19]} 27...
Rxd2 {[%clk 0:02:17.1]} 28. Rxd2 {[%clk 0:02:19.3]} 28... Rd8 {[%clk 0:02:17.4]}
29. Rxd8 {[%clk 0:02:16.2]} 29... Kxd8 {[%clk 0:02:17]} 30. Kf1 {[%clk
0:02:17.7]} 30... Kd7 {[%clk 0:02:17.7]} 31. Ke1 {[%clk 0:02:19.3]} 31... Kd6
{[%clk 0:02:17.5]} 32. Kd2 {[%clk 0:02:20.8]} 32... Ke5 {[%clk 0:02:14.1]} 33.
f3 {[%clk 0:02:20.2]} 33... g5 {[%clk 0:02:13.2]} 34. Ke3 {[%clk 0:02:16.8]}
34... f4+ {[%clk 0:02:12]} 35. Kd2 {[%clk 0:02:10.7]} 35... fxg3 {[%clk
0:01:50]} 36. hxg3 {[%clk 0:02:09.1]} 36... h5 {[%clk 0:01:49.1]} 37. Ke3 {[%clk
0:02:07]} 37... exf3 {[%clk 0:01:47.3]} 38. exf3 {[%clk 0:02:08.9]} 38... h4
{[%clk 0:01:47.9]} 39. f4+ {[%clk 0:02:07.5]} 39... gxf4+ {[%clk 0:01:47.1]} 40.
gxf4+ {[%clk 0:02:09.4]} 40... Kf5 {[%clk 0:01:47.2]} 41. Kf3 {[%clk 0:02:10.6]}
41... h3 {[%clk 0:01:45.5]} 42. Kg3 {[%clk 0:02:11.1]} 42... h2 {[%clk 0:01:45]}
43. Kxh2 {[%clk 0:02:11.1]} 43... Kxf4 {[%clk 0:01:46.1]} 44. Kg2 {[%clk
0:02:13]} 44... Ke3 {[%clk 0:01:45.5]} 45. Kf1 {[%clk 0:02:13.3]} 45... Kd3
{[%clk 0:01:45.9]} 46. Ke1 {[%clk 0:02:14.6]} 46... Kc3 {[%clk 0:01:45.9]} 47.
Kd1 {[%clk 0:02:15.3]} 47... Kxb3 {[%clk 0:01:44.4]} 48. Kc1 {[%clk 0:02:13.9]}
48... Kxc4 {[%clk 0:01:42.5]} 49. Kb2 {[%clk 0:02:14.4]} 49... Kb4 {[%clk
0:01:42.4]} 0

[Event "Open Nuevo Centro. Jornada 2"]
[Site "Chess.com"]
[Date "2020.06.26"]
[Round "4"]
[White "Garcia, Jhoel"]
[Black "Pardo Ruiz, Carlos"]
[Result "1-0"]
[WhiteElo "2290"]
[BlackElo "1833"]
[TimeControl "180+2"]
[EndTime "11:11:08 PDT"]
[Termination "Victoria de shoels por jaque mate"]

1. d4 {[%clk 0:03:01.9]} 1... c5 {[%clk 0:02:59.5]} 2. d5 {[%clk 0:03:02.6]}
2... Nf6 {[%clk 0:02:59.9]} 3. Nc3 {[%clk 0:03:03.1]} 3... d6 {[%clk 0:03:00]}
4. e4 {[%clk 0:03:03.7]} 4... e6 {[%clk 0:03:01.5]} 5. Bb5+ {[%clk 0:03:00.5]}
5... Bd7 {[%clk 0:02:57.6]} 6. a4 {[%clk 0:02:54.5]} 6... exd5 {[%clk
0:02:54.9]} 7. exd5 {[%clk 0:02:55.1]} 7... Bxb5 {[%clk 0:02:54.3]} 8. axb5
{[%clk 0:02:55.4]} 8... Be7 {[%clk 0:02:51.9]} 9. Nf3 {[%clk 0:02:56.5]} 9...
O-O {[%clk 0:02:51.6]} 10. O-O {[%clk 0:02:57.9]} 10... Re8 {[%clk 0:02:52.6]}
11. Nd2 {[%clk 0:02:58.7]} 11... Nbd7 {[%clk 0:02:49.2]} 12. Nc4 {[%clk
0:02:59.9]} 12... Nb6 {[%clk 0:02:48.5]} 13. Na5 {[%clk 0:03:01.3]} 13... Qc7
{[%clk 0:02:46.8]} 14. Bf4 {[%clk 0:02:57.3]} 14... Bf8 {[%clk 0:02:42.9]} 15.
Qf3 {[%clk 0:02:57.5]} 15... Re7 {[%clk 0:02:35.5]} 16. b3 {[%clk 0:02:58.1]}
16... Rae8 {[%clk 0:02:30.8]} 17. Nc4 {[%clk 0:02:59.5]} 17... Nxc4 {[%clk
0:02:27.7]} 18. bxc4 {[%clk 0:03:00.9]} 18... b6 {[%clk 0:02:28.5]} 19. Bg5
{[%clk 0:02:53.8]} 19... Re5 {[%clk 0:02:07.7]} 20. Bxf6 {[%clk 0:02:53.3]}
20... gxf6 {[%clk 0:02:09.6]} 21. Qxf6 {[%clk 0:02:28.5]} 21... Bg7 {[%clk
0:02:09.5]} 22. Qf3 {[%clk 0:02:30]} 22... Qe7 {[%clk 0:02:05.2]} 23. h3 {[%clk
0:02:12.2]} 23... Rg5 {[%clk 0:01:49.7]} 24. Rab1 {[%clk 0:02:02.6]} 24... Bxc3
{[%clk 0:01:37.1]} 25. Qxc3 {[%clk 0:01:58.9]} 25... Qe4 {[%clk 0:01:34.1]} 26.
g3 {[%clk 0:01:48.2]} 26... Qe5 {[%clk 0:01:22.2]} 27. Qd2 {[%clk 0:01:40.5]}
27... Rg7 {[%clk 0:00:54.5]} 28. Rbe1 {[%clk 0:01:38]} 28... Rxg3+ {[%clk
0:00:53.7]} 29. fxg3 {[%clk 0:01:38.4]} 29... Qxg3+ {[%clk 0:00:54.5]} 30. Qg2
{[%clk 0:01:39.9]} 30... Qxg2+ {[%clk 0:00:54]} 31. Kxg2 {[%clk 0:01:40.8]}
31... Rxe1 {[%clk 0:00:55.6]} 32. Rxe1 {[%clk 0:01:42.4]} 32... Kf8 {[%clk
0:00:56.5]} 33. Ra1 {[%clk 0:01:43.3]} 33... f5 {[%clk 0:00:54.6]} 34. Rxa7
{[%clk 0:01:44.5]} 34... f4 {[%clk 0:00:56.1]} 35. Rxh7 {[%clk 0:01:45.4]} 35...
f3+ {[%clk 0:00:58]} 36. Kxf3 {[%clk 0:01:46.6]} 36... Kg8 {[%clk 0:00:58.6]}
37. Rd7 {[%clk 0:01:47]} 37... Kf8 {[%clk 0:01:00.5]} 38. Rxd6 {[%clk
0:01:48.5]} 38... Ke8 {[%clk 0:01:02.3]} 39. Rxb6 {[%clk 0:01:49.9]} 39... Ke7
{[%clk 0:01:03.6]} 40. Rc6 {[%clk 0:01:51.8]} 40... Kd7 {[%clk 0:01:05.1]} 41.
Ke4 {[%clk 0:01:53.4]} 41... Ke7 {[%clk 0:01:04]} 42. Ke5 {[%clk 0:01:54.2]}
42... Kd7 {[%clk 0:01:04]} 43. b6 {[%clk 0:01:55.3]} 43... Ke7 {[%clk
0:01:02.4]} 44. Rc7+ {[%clk 0:01:56.6]} 44... Kf8 {[%clk 0:01:00.8]} 45. Ke6
{[%clk 0:01:57.4]} 45... Kg8 {[%clk 0:01:01.1]} 46. Kf6 {[%clk 0:01:59]} 46...
Kh8 {[%clk 0:01:01.3]} 47. Kg6 {[%clk 0:02:00.1]} 47... Kg8 {[%clk 0:01:02.7]}
48. Rc8# {[%clk 0:02:01.4]} 1

[Event "Open Nuevo Centro. Jornada 2"]
[Site "Chess.com"]
[Date "2020.06.26"]
[Round "4"]
[White "Saiz Sapena, Veronica"]
[Black "Sanchis Bon, Sergi"]
[Result "1-0"]
[WhiteElo "1553"]
[BlackElo "1015"]
[TimeControl "180+2"]
[EndTime "11:11:21 PDT"]
[Termination "Victoria de Titina1 por tiempo"]

1. e4 {[%clk 0:03:01.9]} 1... e5 {[%clk 0:02:56.6]} 2. d4 {[%clk 0:03:01.4]}
2... d6 {[%clk 0:02:53]} 3. dxe5 {[%clk 0:03:00.1]} 3... dxe5 {[%clk 0:02:48.9]}
4. Qxd8+ {[%clk 0:03:00.6]} 4... Kxd8 {[%clk 0:02:50]} 5. Bc4 {[%clk 0:02:58.1]}
5... f6 {[%clk 0:02:47.2]} 6. Be3 {[%clk 0:02:54.4]} 6... c6 {[%clk 0:02:45]} 7.
Nd2 {[%clk 0:02:49.7]} 7... b5 {[%clk 0:02:34.1]} 8. Bb3 {[%clk 0:02:48.8]} 8...
Ne7 {[%clk 0:02:25.6]} 9. O-O-O {[%clk 0:02:48.2]} 9... Ng6 {[%clk 0:02:08.6]}
10. Nc4+ {[%clk 0:02:38.8]} 10... Nd7 {[%clk 0:01:48.6]} 11. Na5 {[%clk
0:02:35.4]} 11... Kc7 {[%clk 0:01:38.6]} 12. g3 {[%clk 0:02:33.1]} 12... Ne7
{[%clk 0:01:36.6]} 13. Be6 {[%clk 0:02:26]} 13... Nc5 {[%clk 0:01:28.6]} 14.
Bxc8 {[%clk 0:02:25.6]} 14... Nxc8 {[%clk 0:01:20.4]} 15. f3 {[%clk 0:02:13.3]}
15... g5 {[%clk 0:01:13.7]} 16. a3 {[%clk 0:02:07.1]} 16... Nb6 {[%clk
0:01:04.9]} 17. b4 {[%clk 0:02:04.9]} 17... Nb7 {[%clk 0:00:52.4]} 18. Nxb7
{[%clk 0:02:02]} 18... Kxb7 {[%clk 0:00:50.9]} 19. Ne2 {[%clk 0:01:58.2]} 19...
Nc4 {[%clk 0:00:49.8]} 20. Bf2 {[%clk 0:01:53.9]} 20... Nxa3 {[%clk 0:00:46.2]}
21. Rd7+ {[%clk 0:01:52.8]} 21... Ka6 {[%clk 0:00:43.8]} 22. c3 {[%clk
0:01:42.3]} 22... Bh6 {[%clk 0:00:22]} 23. Kb2 {[%clk 0:01:41.6]} 23... Nc4+
{[%clk 0:00:20.6]} 24. Kb3 {[%clk 0:01:40.5]} 24... Nd2+ {[%clk 0:00:15.2]} 25.
Rxd2 {[%clk 0:01:38.7]} 25... Rad8 {[%clk 0:00:13.9]} 26. Ra1+ {[%clk
0:01:35.2]} 26... Kb7 {[%clk 0:00:10.1]} 27. Rxa7+ {[%clk 0:01:33.9]} 27... Kb8
{[%clk 0:00:08.5]} 28. Rxd8+ {[%clk 0:01:30.2]} 1

[Event "Open Nuevo Centro. Jornada 2"]
[Site "Chess.com"]
[Date "2020.06.26"]
[Round "4"]
[White "Roca Cruz, Rafael"]
[Black "Gutierrez Marco, Dario"]
[Result "0-1"]
[WhiteElo "1724"]
[BlackElo "1911"]
[TimeControl "180+2"]
[EndTime "11:11:24 PDT"]
[Termination "Victoria de rususs por abandono"]

1. d4 {[%clk 0:03:01.9]} 1... Nf6 {[%clk 0:02:59.1]} 2. c4 {[%clk 0:03:02.5]}
2... c5 {[%clk 0:02:59.6]} 3. d5 {[%clk 0:03:03]} 3... e6 {[%clk 0:03:00.6]} 4.
Nc3 {[%clk 0:03:03.9]} 4... exd5 {[%clk 0:03:01.8]} 5. cxd5 {[%clk 0:03:05.3]}
5... d6 {[%clk 0:03:02.8]} 6. e4 {[%clk 0:03:05.9]} 6... g6 {[%clk 0:03:03.6]}
7. Be2 {[%clk 0:03:06.9]} 7... Bg7 {[%clk 0:03:04.4]} 8. h3 {[%clk 0:03:08.3]}
8... O-O {[%clk 0:03:05.4]} 9. Nf3 {[%clk 0:03:09.7]} 9... Nh5 {[%clk
0:03:05.9]} 10. O-O {[%clk 0:03:00.4]} 10... a6 {[%clk 0:03:06.4]} 11. a4 {[%clk
0:03:00.8]} 11... Nd7 {[%clk 0:03:01.3]} 12. g4 {[%clk 0:02:46.9]} 12... Nhf6
{[%clk 0:02:59.4]} 13. Bf4 {[%clk 0:02:47.9]} 13... Qc7 {[%clk 0:02:57.6]} 14.
Qd2 {[%clk 0:02:48.8]} 14... Re8 {[%clk 0:02:55.3]} 15. Bd3 {[%clk 0:02:47.7]}
15... c4 {[%clk 0:02:46.6]} 16. Bc2 {[%clk 0:02:48.5]} 16... h5 {[%clk
0:02:37.4]} 17. g5 {[%clk 0:01:47.9]} 17... Nh7 {[%clk 0:02:34.7]} 18. Rfe1
{[%clk 0:01:31.6]} 18... Ne5 {[%clk 0:02:34.3]} 19. Nxe5 {[%clk 0:01:31.7]}
19... Bxe5 {[%clk 0:02:34.1]} 20. Bxe5 {[%clk 0:01:32]} 20... Rxe5 {[%clk
0:02:34.1]} 21. h4 {[%clk 0:01:23.5]} 21... Bg4 {[%clk 0:02:34.4]} 22. Bd1
{[%clk 0:01:16.9]} 22... Bxd1 {[%clk 0:02:23.7]} 23. Raxd1 {[%clk 0:01:17.5]}
23... Rae8 {[%clk 0:02:13.2]} 24. Qd4 {[%clk 0:01:05.9]} 24... Nf8 {[%clk
0:01:22.9]} 25. Re2 {[%clk 0:00:47.5]} 25... Qd7 {[%clk 0:01:19.9]} 26. f4
{[%clk 0:00:40.8]} 26... Qg4+ {[%clk 0:01:13.9]} 27. Rg2 {[%clk 0:00:41.3]}
27... Qxf4 {[%clk 0:01:14.9]} 28. Rf1 {[%clk 0:00:41.4]} 28... Qxh4 {[%clk
0:01:08.5]} 29. Rff2 {[%clk 0:00:34.4]} 29... Rxg5 {[%clk 0:01:04.1]} 0

[Event "Open Nuevo Centro. Jornada 2"]
[Site "Chess.com"]
[Date "2020.06.26"]
[Round "4"]
[White "Más Ripoll, Vicente"]
[Black "Gimenez Saiz, Jose Raul"]
[Result "0-1"]
[WhiteElo "1006"]
[BlackElo "1533"]
[TimeControl "180+2"]
[EndTime "11:11:40 PDT"]
[Termination "Victoria de rango013 por jaque mate"]

1. e4 {[%clk 0:03:01.9]} 1... d5 {[%clk 0:03:00.3]} 2. exd5 {[%clk 0:03:02.3]}
2... Nf6 {[%clk 0:03:00.4]} 3. c4 {[%clk 0:03:02.4]} 3... Bg4 {[%clk 0:02:59.3]}
4. Be2 {[%clk 0:02:55.7]} 4... Bxe2 {[%clk 0:02:59.8]} 5. Qxe2 {[%clk
0:02:41.9]} 5... c6 {[%clk 0:03:00.7]} 6. dxc6 {[%clk 0:02:38.7]} 6... Nxc6
{[%clk 0:03:02.1]} 7. Nf3 {[%clk 0:02:35.1]} 7... e6 {[%clk 0:02:59.9]} 8. b3
{[%clk 0:02:25.4]} 8... Nd4 {[%clk 0:02:57.3]} 9. Qd3 {[%clk 0:02:10.1]} 9...
Bc5 {[%clk 0:02:33.8]} 10. b4 {[%clk 0:01:53.6]} 10... Nxf3+ {[%clk 0:02:32.4]}
11. Qxf3 {[%clk 0:01:53.4]} 11... Bd4 {[%clk 0:02:33]} 12. Nc3 {[%clk
0:01:46.7]} 12... Qb6 {[%clk 0:02:15.4]} 13. Rb1 {[%clk 0:01:38.9]} 13... O-O
{[%clk 0:01:58.5]} 14. O-O {[%clk 0:01:37.7]} 14... Rac8 {[%clk 0:01:57.5]} 15.
d3 {[%clk 0:01:09.7]} 15... Bxc3 {[%clk 0:01:55]} 16. Bb2 {[%clk 0:01:05.6]}
16... Bxb2 {[%clk 0:01:55.6]} 17. Rxb2 {[%clk 0:01:06.4]} 17... Qd4 {[%clk
0:01:56.9]} 18. Re2 {[%clk 0:00:58.3]} 18... b6 {[%clk 0:01:46.6]} 19. a4 {[%clk
0:00:43.7]} 19... Rfd8 {[%clk 0:01:46.8]} 20. c5 {[%clk 0:00:28.1]} 20... bxc5
{[%clk 0:01:46.1]} 21. bxc5 {[%clk 0:00:28.9]} 21... Rxc5 {[%clk 0:01:45.8]} 22.
Rb2 {[%clk 0:00:21.5]} 22... h6 {[%clk 0:01:44.7]} 23. Rfb1 {[%clk 0:00:17.5]}
23... Rf5 {[%clk 0:01:44.4]} 24. Qc6 {[%clk 0:00:12.7]} 24... Rc5 {[%clk
0:01:28]} 25. Qb7 {[%clk 0:00:07.4]} 25... Qxd3 {[%clk 0:01:16.4]} 26. Qe7
{[%clk 0:00:05.2]} 26... Qd1+ {[%clk 0:01:04.7]} 27. Rxd1 {[%clk 0:00:05.3]}
27... Rxd1# {[%clk 0:01:05.5]} 0

[Event "Open Nuevo Centro. Jornada 2"]
[Site "Chess.com"]
[Date "2020.06.26"]
[Round "4"]
[White "Perrot, Fabien "]
[Black "Deusa Ballesteros, Lucas "]
[Result "0-1"]
[WhiteElo "1000"]
[BlackElo "1461"]
[TimeControl "180+2"]
[EndTime "11:11:41 PDT"]
[Termination "Victoria de facundillo2009 por jaque mate"]

1. d4 {[%clk 0:03:01.9]} 1... Nf6 {[%clk 0:02:59.7]} 2. c4 {[%clk 0:03:02.1]}
2... g6 {[%clk 0:02:58.9]} 3. Nc3 {[%clk 0:03:03.6]} 3... Bg7 {[%clk 0:02:59.7]}
4. Bg5 {[%clk 0:03:04.8]} 4... d6 {[%clk 0:02:59.3]} 5. e3 {[%clk 0:03:05.8]}
5... Kf8 {[%clk 0:02:59.8]} 6. Bd3 {[%clk 0:03:07.4]} 6... Kg8 {[%clk
0:03:01.7]} 7. h4 {[%clk 0:02:00]} 7... h6 {[%clk 0:02:59]} 8. Bxf6 {[%clk
0:01:55.7]} 8... Bxf6 {[%clk 0:02:52.2]} 9. h5 {[%clk 0:01:48.6]} 9... g5 {[%clk
0:02:51.7]} 10. f4 {[%clk 0:01:43.3]} 10... Nc6 {[%clk 0:02:47.7]} 11. fxg5
{[%clk 0:01:27.4]} 11... Bxg5 {[%clk 0:02:47.1]} 12. Kd2 {[%clk 0:01:08]} 12...
Nb4 {[%clk 0:02:42.2]} 13. a3 {[%clk 0:00:41.5]} 13... Nxd3 {[%clk 0:02:41.3]}
14. Kxd3 {[%clk 0:00:43.4]} 14... c5 {[%clk 0:02:20.9]} 15. d5 {[%clk
0:00:37.5]} 15... a6 {[%clk 0:02:14.6]} 16. Ne4 {[%clk 0:00:34.7]} 16... Bf5
{[%clk 0:02:13.6]} 17. Nf3 {[%clk 0:00:27.7]} 17... Bxe4+ {[%clk 0:02:12.5]} 18.
Kxe4 {[%clk 0:00:27.9]} 18... f6 {[%clk 0:02:11.3]} 19. Nxg5 {[%clk 0:00:18.6]}
19... hxg5 {[%clk 0:02:10.1]} 20. h6 {[%clk 0:00:14.2]} 20... Rh7 {[%clk
0:02:08.9]} 21. Qh5 {[%clk 0:00:13.9]} 21... Qe8 {[%clk 0:02:07.8]} 22. Qxe8+
{[%clk 0:00:09.5]} 22... Rxe8 {[%clk 0:02:09.7]} 23. Rh2 {[%clk 0:00:09.3]}
23... Kf7 {[%clk 0:02:06.6]} 24. Kf5 {[%clk 0:00:08.9]} 24... Reh8 {[%clk
0:02:04.3]} 25. Rah1 {[%clk 0:00:08.5]} 25... b5 {[%clk 0:02:03.5]} 26. cxb5
{[%clk 0:00:05.3]} 26... axb5 {[%clk 0:02:03.6]} 27. b3 {[%clk 0:00:05.9]} 27...
Ra8 {[%clk 0:02:02.7]} 28. Ra1 {[%clk 0:00:03.7]} 28... c4 {[%clk 0:01:56.5]}
29. bxc4 {[%clk 0:00:02.9]} 29... bxc4 {[%clk 0:01:58.4]} 30. g3 {[%clk
0:00:03.1]} 30... c3 {[%clk 0:01:56.1]} 31. Rc2 {[%clk 0:00:04.1]} 31... Rxh6
{[%clk 0:01:49.7]} 32. g4 {[%clk 0:00:03.2]} 32... Ra4 {[%clk 0:01:38.9]} 33.
Rxc3 {[%clk 0:00:02.8]} 33... Rh3 {[%clk 0:01:36.9]} 34. Rg1 {[%clk 0:00:02.6]}
34... Rf3# {[%clk 0:01:36.9]} 0

[Event "Open Nuevo Centro. Jornada 2"]
[Site "Chess.com"]
[Date "2020.06.26"]
[Round "4"]
[White "Valverde Alcaide, Miguel Alejandro"]
[Black "Albuixech Sanz, Jorge"]
[Result "0-1"]
[WhiteElo "870"]
[BlackElo "1376"]
[TimeControl "180+2"]
[EndTime "11:11:48 PDT"]
[Termination "Victoria de Gamyi2 por jaque mate"]

1. e4 {[%clk 0:03:00.7]} 1... c5 {[%clk 0:02:59.1]} 2. c4 {[%clk 0:02:58.5]}
2... b5 {[%clk 0:02:57.5]} 3. cxb5 {[%clk 0:02:55.7]} 3... a6 {[%clk 0:02:58.5]}
4. bxa6 {[%clk 0:02:54.6]} 4... Nxa6 {[%clk 0:02:56.9]} 5. Nf3 {[%clk
0:02:49.2]} 5... Bb7 {[%clk 0:02:53.2]} 6. d3 {[%clk 0:02:47]} 6... d5 {[%clk
0:02:47.4]} 7. exd5 {[%clk 0:02:42]} 7... Qxd5 {[%clk 0:02:39.4]} 8. Nc3 {[%clk
0:02:39.1]} 8... Qd6 {[%clk 0:02:37.4]} 9. g3 {[%clk 0:02:34.8]} 9... Nf6 {[%clk
0:02:29.5]} 10. Bf4 {[%clk 0:02:32.7]} 10... e5 {[%clk 0:02:10.5]} 11. Bxe5
{[%clk 0:02:23.1]} 11... Qe6 {[%clk 0:02:03.7]} 12. Qe2 {[%clk 0:02:19.5]} 12...
Be7 {[%clk 0:01:45.7]} 13. Bf4 {[%clk 0:02:05.9]} 13... Qxe2+ {[%clk 0:01:29.6]}
14. Nxe2 {[%clk 0:02:00.2]} 14... Bxf3 {[%clk 0:01:28]} 15. Rg1 {[%clk
0:01:58.7]} 15... O-O {[%clk 0:01:26.5]} 16. Bh3 {[%clk 0:01:58.4]} 16... Nb4
{[%clk 0:01:24.7]} 17. Rc1 {[%clk 0:01:39.2]} 17... Nxd3+ {[%clk 0:01:24.2]} 18.
Kd1 {[%clk 0:01:32.3]} 18... Nxf2+ {[%clk 0:01:19.9]} 19. Ke1 {[%clk 0:01:30.3]}
19... Nxh3 {[%clk 0:01:20.3]} 20. Rf1 {[%clk 0:01:22.1]} 20... Bxe2 {[%clk
0:01:19.8]} 21. Kxe2 {[%clk 0:01:21.9]} 21... Nxf4+ {[%clk 0:01:20.7]} 22. gxf4
{[%clk 0:01:21.7]} 22... Rfe8 {[%clk 0:01:17.4]} 23. Kf2 {[%clk 0:01:18.7]}
23... Nd5 {[%clk 0:01:16.4]} 24. Rg1 {[%clk 0:01:16.9]} 24... Nxf4 {[%clk
0:01:12.2]} 25. Rg5 {[%clk 0:01:16.5]} 25... Bxg5 {[%clk 0:01:07.3]} 26. Rg1
{[%clk 0:01:16]} 26... Nh3+ {[%clk 0:01:07.2]} 27. Kg2 {[%clk 0:01:14.6]} 27...
Nxg1 {[%clk 0:01:08.4]} 28. Kxg1 {[%clk 0:01:15.2]} 28... Rxa2 {[%clk
0:01:08.8]} 29. Kf2 {[%clk 0:01:15.9]} 29... Rxb2+ {[%clk 0:01:09.7]} 30. Kf3
{[%clk 0:01:17]} 30... c4 {[%clk 0:01:10.9]} 31. Kg4 {[%clk 0:01:13.1]} 31... f6
{[%clk 0:01:09.9]} 32. Kf5 {[%clk 0:01:13.3]} 32... Re5+ {[%clk 0:01:08.3]} 33.
Kg4 {[%clk 0:01:10.9]} 33... c3 {[%clk 0:01:03.6]} 34. Kh5 {[%clk 0:01:11.9]}
34... g6+ {[%clk 0:00:59.5]} 35. Kg4 {[%clk 0:01:00.4]} 35... Rb4+ {[%clk
0:01:00.8]} 36. Kf3 {[%clk 0:01:00.2]} 36... Re3+ {[%clk 0:01:02]} 37. Kf2
{[%clk 0:01:00.1]} 37... Rb2+ {[%clk 0:01:03]} 38. Kf1 {[%clk 0:00:58.4]} 38...
Bh4 {[%clk 0:00:59.7]} 39. h3 {[%clk 0:00:49.8]} 39... Re1# {[%clk 0:01:00.3]}
0